bitfinex-derivatives/quotes_BTCF0:USTF0_20250108
["timestamp","ask_amount","ask_price","bid_price","bid_amount"]
[1736374448359,0.10670534,94851.0,94840.0,0.3608]
[1736374448560,0.052742,94842.0,94840.0,0.3608]
[1736374451567,0.055742,94842.0,94840.0,0.3608]
[1736374452067,0.5,94841.0,94840.0,0.3608]
[1736374452467,0.052752,94823.0,94822.0,0.3608]
[1736374453669,0.052752,94823.0,94822.0,0.3658]
[1736374454975,0.052752,94823.0,94822.0,0.3678]
[1736374458372,0.052752,94823.0,94822.0,0.007]
[1736374465968,0.07362999,94828.0,94824.0,0.052751]
[1736374466577,0.052751,94825.0,94822.0,0.3678]
[1736374467578,0.052752,94823.0,94822.0,0.3608]
[1736374468078,0.052752,94823.0,94822.0,0.37327058]
[1736374468579,0.052752,94823.0,94822.0,0.37527058]
[1736374468777,0.052752,94823.0,94822.0,0.38027058]
[1736374469276,0.052752,94823.0,94822.0,0.37827058]
[1736374469481,0.052752,94823.0,94822.0,0.38027058]
[1736374477384,0.02087999,94824.0,94822.0,0.38027058]
[1736374477591,0.02087999,94839.0,94837.0,0.052744]
[1736374477886,0.02087999,94839.0,94838.0,0.850244]
[1736374478790,0.02287999,94839.0,94838.0,0.850244]
[1736374479288,0.02087999,94839.0,94838.0,0.82824399]
[1736374479488,0.02287999,94839.0,94838.0,0.82824399]
[1736374480587,0.02287999,94839.0,94838.0,0.83024399]
[1736374480781,0.02087999,94839.0,94838.0,0.83024399]
[1736374480977,0.02087999,94839.0,94838.0,0.83424399]
[1736374481380,0.02087999,94839.0,94838.0,0.83124399]
[1736374484789,0.02087999,94839.0,94838.0,0.84299466]
[1736374486075,0.02087999,94839.0,94838.0,0.78909467]
[1736374487489,0.02087999,94839.0,94838.0,0.78809467]
[1736374487687,0.07362299,94839.0,94838.0,0.37455067]
[1736374487884,0.07362299,94839.0,94838.0,0.35255066]
[1736374488078,0.07362299,94839.0,94838.0,0.35055066]
[1736374490593,0.07462299,94839.0,94838.0,0.35055066]
[1736374490995,0.07662299,94839.0,94838.0,0.35055066]
[1736374491201,0.07562299,94839.0,94838.0,0.35055066]
[1736374492089,0.07462299,94839.0,94838.0,0.35055066]
[1736374492995,0.07462299,94839.0,94838.0,0.32855065]
[1736374496499,0.38267999,94839.0,94823.0,0.44333]
[1736374496694,0.38267999,94839.0,94824.0,0.052751]
[1736374496695,0.052748,94830.0,94824.0,0.052751]
[1736374497812,0.052744,94837.0,94824.0,0.052751]
[1736374498010,0.052749,94828.0,94824.0,0.052751]
[1736374498306,0.158,94838.0,94824.0,0.002]
[1736374498507,0.052751,94825.0,94824.0,0.002]
[1736374498714,0.052751,94825.0,94824.0,0.007]
[1736374499298,0.052751,94825.0,94824.0,0.006]
[1736374500616,0.052751,94825.0,94805.0,0.3608]
[1736374500617,0.5,94824.0,94805.0,0.3608]
[1736374500807,0.052757,94813.0,94805.0,0.3608]
[1736374501210,0.05276,94809.0,94805.0,0.54771874]
[1736374501404,0.05276,94808.0,94805.0,0.54771874]
[1736374501605,0.02087999,94813.0,94805.0,0.54771874]
[1736374501808,0.052761,94807.0,94805.0,0.54771874]
[1736374502615,0.052761,94807.0,94805.0,0.3608]
[1736374504016,0.052764,94801.0,94800.0,0.0538]
[1736374504523,0.07364399,94801.0,94800.0,0.0538]
[1736374506225,0.57364399,94801.0,94800.0,0.0538]
[1736374506421,0.07364399,94801.0,94800.0,0.0538]
[1736374506814,0.08521885,94801.0,94800.0,0.0538]
[1736374507013,0.58521885,94801.0,94800.0,0.0538]
[1736374507419,0.08521885,94801.0,94800.0,0.0538]
[1736374507623,0.44601885,94801.0,94778.0,0.00844]
[1736374507826,0.39325485,94801.0,94778.0,0.00844]
[1736374508124,0.052776,94779.0,94778.0,0.00844]
[1736374508517,0.052772,94786.0,94776.0,0.3608]
[1736374508824,0.052777,94778.0,94776.0,0.37248249]
[1736374509316,0.052777,94778.0,94776.0,0.01168249]
[1736374509523,0.37929728,94784.0,94770.0,0.052781]
[1736374509723,0.10670534,94780.0,94770.0,0.052781]
[1736374509919,0.053776,94779.0,94778.0,0.013]
[1736374510627,0.053776,94779.0,94778.0,0.009]
[1736374511525,0.053776,94779.0,94778.0,0.013]
[1736374511920,0.052776,94779.0,94778.0,0.004]
[1736374512721,0.053776,94779.0,94778.0,0.013]
[1736374512918,0.052777,94777.0,94776.0,0.35179999]
[1736374514131,0.003,94779.0,94770.0,0.01167436]
[1736374514427,0.052781,94772.0,94766.0,0.052783]
[1736374514827,0.052781,94771.0,94766.0,0.052783]
[1736374515729,0.058778,94777.0,94771.0,0.05278]
[1736374515926,0.058778,94777.0,94776.0,0.3608]
[1736374516124,0.053778,94777.0,94776.0,0.3608]
[1736374516326,0.052778,94777.0,94776.0,0.3608]
[1736374516627,0.001,94779.0,94776.0,0.3608]
[1736374516839,0.001,94779.0,94777.0,0.052777]
[1736374517123,0.052774,94783.0,94777.0,0.052777]
[1736374517327,0.052774,94783.0,94780.0,0.052775]
[1736374517625,0.60670534,94820.0,94781.0,0.156]
[1736374517830,0.052754,94819.0,94811.0,0.3608]
[1736374518031,0.052758,94812.0,94811.0,0.3608]
[1736374518635,0.052751,94824.0,94817.0,0.052755]
[1736374518823,0.052751,94824.0,94823.0,0.3608]
[1736374520123,0.054751,94824.0,94823.0,0.3608]
[1736374520324,0.055751,94824.0,94823.0,0.3608]
[1736374521032,0.054751,94824.0,94823.0,0.3608]
[1736374521335,0.055751,94824.0,94823.0,0.3608]
[1736374521923,0.05571072,94824.0,94823.0,0.3608]
[1736374523817,0.05471072,94824.0,94823.0,0.3608]
[1736374524034,0.05571072,94824.0,94823.0,0.3608]
[1736374524623,0.003,94824.0,94823.0,0.3608]
[1736374524824,0.003,94824.0,94823.0,0.413552]
[1736374525827,0.001,94824.0,94823.0,0.413552]
[1736374526025,0.41354,94844.0,94837.0,0.052744]
[1736374526328,0.41354,94844.0,94837.0,0.413544]
[1736374526329,0.3608,94844.0,94837.0,0.413544]
[1736374527131,0.3638,94844.0,94837.0,0.413544]
[1736374527528,0.3718,94844.0,94837.0,0.413544]
[1736374527827,0.052741,94842.0,94837.0,0.39154399]
[1736374528023,0.3718,94844.0,94837.0,0.3608]
[1736374528219,0.052741,94841.0,94837.0,0.3608]
[1736374529734,0.060741,94841.0,94837.0,0.3608]
[1736374530028,0.008,94841.0,94839.0,0.052742]
[1736374530233,0.011,94841.0,94839.0,0.052742]
[1736374532424,0.009,94841.0,94839.0,0.052742]
[1736374532635,0.012,94841.0,94839.0,0.052742]
[1736374533026,0.012,94841.0,94839.0,0.03074199]
[1736374535030,0.012,94841.0,94839.0,0.04225385]
[1736374536932,0.012,94841.0,94840.0,0.0727]
[1736374537138,0.152731,94860.0,94854.0,0.052734]
[1736374537329,0.152731,94860.0,94858.0,0.3608]
[1736374537936,0.1,94860.0,94859.0,0.052732]
[1736374539031,0.104,94860.0,94859.0,0.052732]
[1736374539237,0.104,94860.0,94859.0,0.03073199]
[1736374539533,0.105,94860.0,94859.0,0.03073199]
[1736374541332,0.105,94860.0,94859.0,0.04190879]
[1736374542237,0.105,94860.0,94859.0,0.0111768]
[1736374542439,0.105,94860.0,94858.0,0.723]
[1736374542640,0.130431,94859.0,94858.0,0.7216]
[1736374542838,0.130431,94859.0,94858.0,0.69959999]
[1736374543038,0.130431,94859.0,94858.0,0.71117125]
[1736374543839,0.052731,94859.0,94858.0,0.71117125]
[1736374545244,0.053731,94859.0,94858.0,0.71117125]
[1736374545942,0.053731,94859.0,94858.0,0.37237126]
[1736374546139,0.053731,94859.0,94858.0,0.3608]
[1736374546539,0.052741,94841.0,94840.0,0.36238143]
[1736374546931,0.052741,94841.0,94840.0,0.00158143]
[1736374547335,0.0744,94849.0,94838.0,0.0014]
[1736374547336,0.052742,94839.0,94838.0,0.0014]
[1736374547636,0.052745,94834.0,94833.0,0.011274]
[1736374547838,0.0753,94840.0,94828.0,0.18691874]
[1736374548245,0.052748,94830.0,94828.0,0.18691874]
[1736374548933,0.052748,94830.0,94828.0,0.19591874]
[1736374549141,0.052748,94830.0,94828.0,0.009]
[1736374549343,0.052748,94830.0,94828.0,0.013]
[1736374549544,0.057748,94830.0,94828.0,0.004]
[1736374551540,0.052749,94828.0,94827.0,0.01160582]
[1736374551750,0.05275,94826.0,94819.0,0.00158189]
[1736374551947,0.052751,94824.0,94819.0,0.00158189]
[1736374553648,0.0782,94827.0,94819.0,0.00158189]
[1736374553848,0.052752,94822.0,94819.0,0.00158189]
[1736374554245,0.052752,94822.0,94819.0,0.00258189]
[1736374555243,0.0782,94827.0,94819.0,0.00258189]
[1736374555244,0.052753,94821.0,94819.0,0.00258189]
[1736374555444,0.052753,94821.0,94819.0,0.00158189]
[1736374555644,0.052753,94820.0,94819.0,0.001]
[1736374557140,0.0782,94827.0,94817.0,0.0113416]
[1736374557341,0.052753,94820.0,94819.0,0.002]
[1736374558143,0.052754,94819.0,94814.0,0.37189755]
[1736374560057,0.052754,94819.0,94814.0,0.37289755]
[1736374560445,0.052754,94819.0,94814.0,0.37389755]
[1736374561451,0.0782,94827.0,94814.0,0.37389755]
[1736374562548,0.052756,94815.0,94814.0,0.3628]
[1736374562749,0.052756,94815.0,94814.0,0.002]
[1736374563644,0.052756,94815.0,94814.0,0.001]
[1736374563852,0.052761,94805.0,94804.0,0.01134429]
[1736374564649,0.052766,94797.0,94786.0,0.1419]
[1736374564844,0.052766,94797.0,94796.0,0.052766]
[1736374566856,0.10670534,94806.0,94796.0,0.052766]
[1736374567055,0.10670534,94806.0,94802.0,0.3608]
[1736374567248,0.052762,94803.0,94802.0,0.3608]
[1736374567449,0.052765,94797.0,94796.0,0.001]
[1736374567859,0.0692,94802.0,94791.0,0.35117044]
[1736374568157,0.052768,94792.0,94791.0,0.01137045]
[1736374568349,0.0692,94802.0,94786.0,0.07]
[1736374568547,0.0692,94802.0,94792.0,0.3608]
[1736374568548,0.10670534,94800.0,94792.0,0.3608]
[1736374568851,0.052767,94794.0,94792.0,0.3608]
[1736374570247,0.052767,94794.0,94783.0,0.3608]
[1736374570550,0.052771,94784.0,94783.0,0.3608]
[1736374571058,0.052771,94784.0,94783.0,0.37244736]
[1736374571962,0.3608,94795.0,94783.0,0.37244736]
[1736374572151,0.052768,94789.0,94786.0,0.05277]
[1736374572553,0.3608,94795.0,94786.0,0.05277]
[1736374572554,0.052769,94788.0,94786.0,0.05277]
[1736374572857,0.052766,94792.0,94786.0,0.05277]
[1736374573355,0.052767,94791.0,94786.0,0.05577]
[1736374573557,0.052767,94791.0,94786.0,0.05677]
[1736374573853,0.052767,94790.0,94786.0,0.05377]
[1736374574560,0.052769,94788.0,94786.0,0.05377]
[1736374575759,0.052769,94788.0,94786.0,0.05277]
[1736374576059,0.052769,94788.0,94786.0,0.05677]
[1736374576447,0.052769,94788.0,94786.0,0.05277]
[1736374576659,0.052769,94788.0,94786.0,0.05477]
[1736374577465,0.052769,94788.0,94786.0,0.002]
[1736374578755,0.052769,94788.0,94786.0,0.001]
[1736374579555,0.3608,94795.0,94786.0,0.001]
[1736374579756,0.05277,94786.0,94783.0,0.37244736]
[1736374580261,0.001,94788.0,94783.0,0.37244736]
[1736374580460,0.052771,94784.0,94783.0,0.37244736]
[1736374580758,0.052771,94784.0,94783.0,0.3608]
[1736374580956,0.052771,94784.0,94777.0,0.0015824]
[1736374580957,0.052774,94778.0,94777.0,0.0015824]
[1736374582455,0.06400409,94778.0,94777.0,0.0015824]
[1736374582750,0.052783,94762.0,94761.0,0.0703]
[1736374584257,0.052784,94760.0,94759.0,0.01112772]
[1736374584458,0.052784,94760.0,94758.0,0.3608]
[1736374585565,0.052784,94760.0,94758.0,0.37200279]
[1736374586459,0.053784,94760.0,94758.0,0.38600279]
[1736374591068,0.052784,94760.0,94758.0,0.37700279]
[1736374591759,0.052784,94760.0,94758.0,0.37600279]
[1736374591966,0.10670534,94770.0,94758.0,0.37600279]
[1736374592373,0.10670534,94770.0,94758.0,0.37200279]
[1736374592559,0.052785,94759.0,94758.0,0.37200279]
[1736374592962,0.052785,94759.0,94758.0,0.35000278]
[1736374593677,0.052785,94759.0,94758.0,0.53692152]
[1736374596075,0.052785,94759.0,94758.0,0.35000278]
[1736374597678,0.052785,94759.0,94758.0,0.01120279]
[1736374597977,0.052785,94758.0,94757.0,0.3608]
[1736374599080,0.052785,94758.0,94757.0,0.33879999]
[1736374601580,0.052779,94769.0,94759.0,0.052784]
[1736374601781,0.3608,94772.0,94759.0,0.10670534]
[1736374601972,0.052781,94766.0,94757.0,0.33979999]
[1736374602280,0.052784,94760.0,94757.0,0.33979999]
[1736374602582,0.052784,94760.0,94757.0,0.33879999]
[1736374602879,0.052784,94760.0,94757.0,0.33979999]
[1736374603086,0.052784,94760.0,94758.0,0.3026962]
[1736374603273,0.10670534,94770.0,94758.0,0.3026962]
[1736374603473,0.052776,94775.0,94758.0,0.3026962]
[1736374603681,0.052783,94762.0,94758.0,0.3026962]
[1736374604178,0.052783,94762.0,94758.0,0.2499112]
[1736374604379,0.052783,94762.0,94759.0,0.052784]
[1736374605282,0.052783,94762.0,94761.0,0.18751145]
[1736374606271,0.052783,94762.0,94759.0,0.18951145]
[1736374606782,0.052783,94761.0,94759.0,0.18951145]
[1736374607283,0.052783,94761.0,94759.0,0.18751145]
[1736374607585,0.052784,94760.0,94759.0,0.18751145]
[1736374607984,0.052784,94760.0,94759.0,0.16551144]
[1736374608187,0.052784,94760.0,94759.0,0.16851144]
[1736374608986,0.052774,94779.0,94759.0,0.16751144]
[1736374609173,0.01133162,94777.0,94759.0,0.22029544]
[1736374609483,0.052782,94763.0,94759.0,0.22029544]
[1736374609680,0.052782,94763.0,94759.0,0.054784]
[1736374610476,0.052782,94763.0,94759.0,0.055784]
[1736374610676,0.052782,94763.0,94759.0,0.003]
[1736374610882,0.052781,94765.0,94762.0,0.052783]
[1736374611586,0.052782,94764.0,94762.0,0.052783]
[1736374612180,0.052782,94764.0,94762.0,0.053783]
[1736374613185,0.052782,94764.0,94762.0,0.054783]
[1736374613575,0.01082472,94779.0,94762.0,0.002]
[1736374613779,0.052782,94763.0,94762.0,0.003]
[1736374614487,0.052782,94763.0,94762.0,0.001]
[1736374614688,0.052782,94763.0,94762.0,0.002]
[1736374616381,0.052782,94763.0,94762.0,0.001]
[1736374616680,0.052782,94763.0,94762.0,0.002]
[1736374618890,0.052782,94763.0,94762.0,0.001]
[1736374619493,0.052782,94763.0,94757.0,0.59015119]
[1736374619494,0.052785,94758.0,94757.0,0.2513512]
[1736374619786,0.052788,94752.0,94726.0,0.49912072]
[1736374619992,0.052799,94733.0,94727.0,0.4318]
[1736374620476,0.3608,94741.0,94727.0,0.4318]
[1736374620477,0.27917291,94741.0,94727.0,0.4318]
[1736374620885,0.052802,94728.0,94727.0,0.3608]
[1736374621083,0.052808,94717.0,94712.0,0.071]
[1736374621492,0.052808,94717.0,94715.0,0.44648502]
[1736374621686,0.10670534,94726.0,94718.0,0.052807]
[1736374621987,0.10670534,94726.0,94715.0,0.44648502]
[1736374621988,0.3608,94730.0,94715.0,0.01101439]
[1736374622197,0.10670534,94740.0,94724.0,0.052804]
[1736374622381,0.10670534,94750.0,94739.0,0.3608]
[1736374622580,0.052795,94740.0,94739.0,0.3608]
[1736374624192,0.052796,94738.0,94737.0,0.0723]
[1736374625888,0.21070538,94738.0,94737.0,0.0723]
[1736374627393,0.052796,94738.0,94737.0,0.0723]
[1736374628390,0.052799,94732.0,94721.0,0.3608]
[1736374628598,0.052808,94716.0,94715.0,0.2158]
[1736374629189,0.052811,94712.0,94711.0,0.00158373]
[1736374629382,0.052816,94703.0,94701.0,0.0712]
[1736374632796,0.052816,94703.0,94701.0,0.0772]
[1736374633697,0.052816,94703.0,94701.0,0.006]
[1736374634097,0.052816,94703.0,94701.0,0.004]
[1736374634301,0.052816,94703.0,94701.0,0.001]
[1736374634603,0.052816,94703.0,94701.0,0.003]
[1736374641506,0.052816,94701.0,94700.0,0.1]
[1736374642495,0.052819,94696.0,94695.0,0.0749]
[1736374642696,0.052825,94684.0,94673.0,0.00845]
[1736374642904,0.052825,94684.0,94680.0,0.0766]
[1736374643901,0.3608,94688.0,94680.0,0.0766]
[1736374644100,0.052827,94681.0,94680.0,0.0766]
[1736374644497,0.052827,94681.0,94674.0,0.0698]
[1736374644700,0.052838,94661.0,94644.0,0.052847]
[1736374644903,0.10670534,94670.0,94646.0,0.052847]
[1736374645108,0.10670534,94670.0,94669.0,0.3608]
[1736374645298,0.052833,94671.0,94669.0,0.3608]
[1736374646800,0.053833,94671.0,94669.0,0.3608]
[1736374649103,0.0112089,94673.0,94669.0,0.3608]
[1736374649301,0.12600668,94686.0,94672.0,0.3608]
[1736374649498,0.12600668,94686.0,94683.0,0.3608]
[1736374649700,0.12600668,94686.0,94684.0,0.1415]
[1736374650508,0.052825,94685.0,94684.0,0.1415]
[1736374650899,0.052825,94685.0,94684.0,0.0711]
[1736374652608,0.052825,94685.0,94684.0,0.148]
[1736374653004,0.052825,94685.0,94684.0,0.12599999]
[1736374653212,0.053825,94685.0,94684.0,0.12599999]
[1736374653505,0.053825,94685.0,94673.0,0.0771]
[1736374653506,0.052831,94674.0,94673.0,0.0771]
[1736374653711,0.052831,94674.0,94672.0,0.3608]
[1736374654612,0.052834,94668.0,94667.0,0.0702]
[1736374655001,0.052831,94674.0,94665.0,0.00158452]
[1736374655200,0.052835,94666.0,94665.0,0.00158452]
[1736374656003,0.052837,94663.0,94662.0,0.3608]
[1736374657403,0.052837,94663.0,94662.0,0.3638]
[1736374658201,0.48736669,94676.0,94662.0,0.3638]
[1736374658406,0.48680668,94676.0,94662.0,0.3638]
[1736374658607,0.052837,94663.0,94662.0,0.3648]
[1736374660004,0.052837,94663.0,94662.0,0.3638]
[1736374664614,0.052837,94663.0,94662.0,0.3628]
[1736374664817,0.052837,94663.0,94662.0,0.3638]
[1736374667109,0.12600668,94677.0,94662.0,0.3638]
[1736374667412,0.052831,94674.0,94673.0,0.3608]
[1736374668011,0.052831,94674.0,94673.0,0.33879999]
[1736374668414,0.05283,94675.0,94673.0,0.33879999]
[1736374668613,0.05283,94675.0,94674.0,0.1498]
[1736374670012,0.05583,94675.0,94674.0,0.1498]
[1736374670204,0.05583,94675.0,94674.0,0.16059733]
[1736374670513,0.05578525,94675.0,94674.0,0.16059733]
[1736374670718,0.05678525,94675.0,94674.0,0.16059733]
[1736374671305,0.18179193,94675.0,94674.0,0.16159733]
[1736374671713,0.17879193,94675.0,94674.0,0.16359733]
[1736374672316,0.05278525,94675.0,94674.0,0.16359733]
[1736374673014,0.05278525,94675.0,94674.0,0.14159732]
[1736374674609,0.05278525,94675.0,94674.0,0.14059732]
[1736374675012,0.05278525,94675.0,94674.0,0.13859732]
[1736374675215,0.05278525,94675.0,94674.0,0.13959732]
[1736374675422,0.05278525,94675.0,94674.0,0.01179733]
[1736374675622,0.05278525,94675.0,94674.0,0.01079733]
[1736374675915,0.052831,94674.0,94673.0,0.33879999]
[1736374677124,0.052831,94674.0,94673.0,0.34959709]
[1736374677931,0.052831,94674.0,94673.0,0.32759708]
[1736374678430,0.053831,94674.0,94673.0,0.32759708]
[1736374681525,0.053831,94674.0,94673.0,0.38042808]
[1736374682735,0.052831,94674.0,94673.0,0.32759708]
[1736374682937,0.052831,94674.0,94673.0,0.30859707]
[1736374683830,0.052831,94674.0,94673.0,0.30959707]
[1736374685228,0.2428235,94674.0,94673.0,0.30959707]
[1736374685625,0.1899925,94674.0,94673.0,0.30959707]
[1736374685937,0.13879337,94674.0,94673.0,0.36242807]
[1736374686135,0.01999337,94674.0,94673.0,0.36242807]
[1736374686328,0.01999337,94674.0,94673.0,0.37087807]
[1736374686525,0.052824,94687.0,94673.0,0.31804707]
[1736374686731,0.052824,94687.0,94686.0,0.3608]
[1736374688031,0.052824,94687.0,94686.0,0.33879999]
[1736374688224,0.21114524,94687.0,94686.0,0.33879999]
[1736374688830,0.21414524,94687.0,94686.0,0.33879999]
[1736374689428,0.056824,94687.0,94686.0,0.33879999]
[1736374690035,0.055824,94687.0,94673.0,0.30324997]
[1736374690242,0.052831,94674.0,94668.0,0.25139876]
[1736374690537,0.052831,94674.0,94670.0,0.3608]
[1736374690935,0.052832,94673.0,94671.0,0.0764]
[1736374691934,0.052832,94673.0,94671.0,0.0804]
[1736374692135,0.21114549,94673.0,94671.0,0.0804]
[1736374692440,0.21114549,94673.0,94671.0,0.004]
[1736374692645,0.21114549,94673.0,94670.0,0.3648]
[1736374692944,0.21114549,94673.0,94671.0,0.004]
[1736374693446,0.21114549,94673.0,94671.0,0.006]
[1736374693447,0.052832,94673.0,94671.0,0.006]
[1736374693639,0.3608,94687.0,94671.0,0.006]
[1736374693840,0.052827,94682.0,94677.0,0.10670534]
[1736374694042,0.3608,94689.0,94680.0,0.052827]
[1736374694242,0.052826,94683.0,94678.0,0.0762]
[1736374694437,0.3608,94689.0,94678.0,0.0762]
[1736374694638,0.052827,94682.0,94678.0,0.0762]
[1736374695238,0.052828,94680.0,94678.0,0.0762]
[1736374695434,0.052828,94680.0,94679.0,0.3608]
[1736374696844,0.052828,94680.0,94679.0,0.3618]
[1736374697845,0.052828,94680.0,94679.0,0.3648]
[1736374699250,0.052828,94680.0,94679.0,0.3638]
[1736374699455,0.052828,94680.0,94679.0,0.3618]
[1736374699753,0.052828,94680.0,94679.0,0.3628]
[1736374701153,0.052828,94680.0,94679.0,0.3648]
[1736374701350,0.052828,94680.0,94679.0,0.3638]
[1736374701546,0.052828,94680.0,94679.0,0.3648]
[1736374701746,0.052828,94680.0,94679.0,0.3618]
[1736374702050,0.052828,94680.0,94679.0,0.3628]
[1736374702450,0.052824,94686.0,94679.0,0.3648]
[1736374702650,0.052827,94682.0,94679.0,0.3648]
[1736374702851,0.052827,94682.0,94679.0,0.3638]
[1736374703048,0.15826893,94681.0,94679.0,0.3648]
[1736374704146,0.15826893,94681.0,94679.0,0.3628]
[1736374704354,0.21109593,94682.0,94679.0,0.3618]
[1736374704554,0.21109593,94682.0,94679.0,0.3628]
[1736374705747,0.15826893,94680.0,94679.0,0.3628]
[1736374707356,0.15826893,94680.0,94679.0,0.3638]
[1736374707949,0.15826893,94680.0,94679.0,0.34079999]
[1736374708560,0.15826893,94680.0,94679.0,0.34179999]
[1736374709264,0.052827,94682.0,94679.0,0.34079999]
[1736374710763,0.052827,94682.0,94679.0,0.34179999]
[1736374711465,0.052827,94682.0,94679.0,0.34079999]
[1736374712063,0.052827,94682.0,94679.0,0.34179999]
[1736374712462,0.052827,94682.0,94679.0,0.34079999]
[1736374712768,0.052827,94682.0,94679.0,0.34179999]
[1736374712956,0.052827,94682.0,94679.0,0.31979998]
[1736374713857,0.15826893,94683.0,94681.0,0.052827]
[1736374714058,0.15826893,94683.0,94682.0,0.0653]
[1736374714859,0.092381,94690.0,94682.0,0.0653]
[1736374715866,0.1583544,94683.0,94682.0,0.0653]
[1736374716565,0.1583544,94683.0,94682.0,0.0663]
[1736374717374,0.052826,94684.0,94682.0,0.0653]
[1736374718469,0.052826,94684.0,94682.0,0.0673]
[1736374719158,0.052826,94684.0,94682.0,0.04529999]
[1736374719559,0.052826,94684.0,94682.0,0.04629999]
[1736374720257,0.052826,94684.0,94682.0,0.04529999]
[1736374720457,0.052826,94684.0,94682.0,0.04429999]
[1736374720665,0.052826,94684.0,94682.0,0.04629999]
[1736374722970,0.052826,94684.0,94682.0,0.02429998]
[1736374724365,0.0699,94698.0,94683.0,0.3608]
[1736374724564,0.052819,94695.0,94693.0,0.3608]
[1736374725671,0.055819,94695.0,94693.0,0.3608]
[1736374727566,0.052819,94695.0,94693.0,0.42562582]
[1736374727972,0.052819,94695.0,94693.0,0.40362581]
[1736374728269,0.052819,94695.0,94693.0,0.40462581]
[1736374728464,0.052819,94695.0,94693.0,0.40562581]
[1736374728665,0.052819,94695.0,94693.0,0.40462581]
[1736374728867,0.052819,94695.0,94693.0,0.06582582]
[1736374729067,0.052819,94695.0,94694.0,0.3608]
[1736374729667,0.052819,94695.0,94694.0,0.41362]
[1736374731173,0.052819,94695.0,94694.0,0.41462]
[1736374731567,0.052819,94695.0,94694.0,0.41562]
[1736374732866,0.052819,94695.0,94694.0,0.39361999]
[1736374735271,0.24289649,94695.0,94694.0,0.39361999]
[1736374736574,0.052819,94695.0,94694.0,0.39361999]
[1736374737578,0.24289649,94695.0,94694.0,0.39361999]
[1736374737876,0.24289649,94695.0,94694.0,0.37161998]
[1736374738977,0.052819,94695.0,94694.0,0.37161998]
[1736374739375,0.052819,94695.0,94694.0,0.05482]
[1736374740282,0.052819,94695.0,94694.0,0.002]
[1736374740483,0.052826,94682.0,94678.0,0.18902705]
[1736374740670,0.052828,94679.0,94678.0,0.18902705]
[1736374741068,0.052828,94679.0,94671.0,0.3608]
[1736374741283,0.052832,94672.0,94671.0,0.3608]
[1736374741871,0.052832,94672.0,94671.0,0.37144172]
[1736374742278,0.052832,94672.0,94671.0,0.37344172]
[1736374742481,0.052832,94672.0,94671.0,0.37444172]
[1736374742982,0.052832,94672.0,94671.0,0.35244171]
[1736374743581,0.19004567,94676.0,94671.0,0.35244171]
[1736374743781,0.19004567,94676.0,94675.0,0.05283]
[1736374743981,0.08074567,94676.0,94675.0,0.05283]
[1736374744376,0.08074567,94676.0,94675.0,1.55283]
[1736374745286,0.15828075,94683.0,94681.0,0.052827]
[1736374745477,0.15828075,94683.0,94682.0,0.3608]
[1736374746574,0.052826,94684.0,94682.0,0.3608]
[1736374746875,0.052826,94683.0,94682.0,0.3608]
[1736374748082,0.052826,94683.0,94682.0,0.33979999]
[1736374748984,0.052826,94683.0,94682.0,0.34079999]
[1736374749884,0.052826,94683.0,94682.0,0.33979999]
[1736374750079,0.052826,94683.0,94682.0,0.34079999]
[1736374750676,0.052826,94683.0,94682.0,0.33979999]
[1736374750883,0.052826,94683.0,94682.0,0.34079999]
[1736374751479,0.052826,94683.0,94682.0,0.01299568]
[1736374752386,0.053826,94683.0,94682.0,0.01199568]
[1736374753089,0.053826,94683.0,94682.0,0.01099568]
[1736374753385,0.052827,94682.0,94675.0,0.05283]
[1736374753585,0.15828075,94687.0,94675.0,0.05283]
[1736374753787,0.052828,94680.0,94675.0,0.05283]
[1736374753989,0.052828,94680.0,94675.0,0.06342214]
[1736374754788,0.21110834,94680.0,94675.0,0.06342214]
[1736374755291,0.052829,94677.0,94675.0,0.06942214]
[1736374755589,0.05283,94676.0,94675.0,0.006]
[1736374755789,0.12193,94676.0,94675.0,0.006]
[1736374756787,0.12193,94676.0,94675.0,0.004]
[1736374756982,0.12193,94676.0,94675.0,0.002]
[1736374757182,0.12193,94676.0,94675.0,0.006]
[1736374757690,0.12393,94676.0,94675.0,0.004]
[1736374757988,0.05283,94675.0,94674.0,0.34279999]
[1736374759998,0.001,94676.0,94666.0,0.06350486]
[1736374759999,0.052835,94667.0,94666.0,0.06350486]
[1736374760792,0.052835,94667.0,94666.0,0.01066986]
[1736374761083,0.052836,94665.0,94663.0,0.03485]
[1736374762691,0.052836,94665.0,94663.0,0.04580817]
[1736374762991,0.052836,94664.0,94663.0,0.04580817]
[1736374763192,0.052836,94664.0,94663.0,0.04780817]
[1736374764099,0.052836,94664.0,94663.0,0.04880817]
[1736374767494,0.15820303,94674.0,94666.0,0.052835]
[1736374767495,0.052833,94670.0,94666.0,0.052835]
[1736374767694,0.052833,94670.0,94663.0,0.04880817]
[1736374767695,0.21103403,94674.0,94669.0,0.3608]
[1736374767894,0.15820303,94674.0,94673.0,0.03083099]
[1736374768105,0.15820303,94674.0,94673.0,1.53083099]
[1736374769001,0.18982686,94680.0,94673.0,1.53083099]
[1736374769198,0.18982686,94680.0,94679.0,0.413628]
[1736374769400,0.18982686,94688.0,94679.0,0.3608]
[1736374769603,0.18982686,94688.0,94687.0,0.052824]
[1736374770205,0.18982686,94688.0,94687.0,0.413624]
[1736374771013,0.052819,94696.0,94688.0,0.052823]
[1736374771198,0.052819,94696.0,94687.0,0.3608]
[1736374771404,0.052819,94696.0,94690.0,0.052822]
[1736374772213,0.052819,94695.0,94690.0,0.052822]
[1736374773106,0.052819,94695.0,94690.0,0.054822]
[1736374775016,0.052819,94695.0,94690.0,0.056822]
[1736374775412,0.05282,94694.0,94690.0,0.056822]
[1736374775812,0.05282,94694.0,94690.0,0.055822]
[1736374777515,0.05282,94694.0,94690.0,0.052822]